[Event "Slovakia Open 2022"]
[Site "Bratislava"]
[Date "2022.09.30"]
[Round "2.7"]
[White "Leniart, Arkadiusz"]
[Black "Lecky, Juraj"]
[Result "1-0"]
[ECO "B22"]
[WhiteElo "2479"]
[BlackElo "2070"]
[Annotator "TA"]
[PlyCount "93"]
[EventDate "2022.09.30"]
[EventCountry "SVK"]
[SourceTitle "playchess.com"]
[Source "ChessBase"]
[SourceQuality "1"]
[TimeControl "2700+10"]

{[%evp 9,93,20,22,15,31,25,23,17,29,41,18,9,46,50,45,55,109,109,110,99,124,120,127,127,122,92,110,109,109,138,144,121,133,84,114,53,120,77,132,125,119,110,133,120,181,190,210,180,261,233,231,195,229,224,216,213,233,213,239,247,239,234,247,246,244,243,281,283,339,339,361,357,354,348,353,353,384,383,375,372,548,516,660,633,29957,6233]} 1. e4 {[%emt 0:00:14][%cal Be2e4,Be4e5][%mdl 32]} c5 {[%emt 0:00:00]} 2. c3 {[%emt 0:00:02]} Nf6 {[%emt 0:00:02]} 3. e5 {[%emt 0:00:06]} Nd5 {[%emt 0:00:01]} 4. Bc4 {[%emt 0:00:05][%cal Bf1c4,Bc4b3,Bb3c2][%mdl 32]} Nb6 {[%emt 0:00:03]} 5. Bb3 {[%emt 0:00:02]} c4 {[%emt 0:00:37]} 6. Bc2 {[%emt 0:00:03] B22: Sicilian: 2 c3.} d6 {[%emt 0:00:01]} 7. exd6 {[%emt 0:00:04]} Qxd6 {[%emt 0:00:17]} 8. Nf3 {[%emt 0:00:03] White has an edge.} (8. b3 {looks sharper.} Nc6 9. bxc4 Nxc4 10. Qe2) 8... Qe6+ {[%emt 0:00:05]} 9. Kf1 $1 {[%emt 0:00:03][%mdl 4] now scores much better than the old 9.Qe2.} Qd5 {[%emt 0:06:36]} 10. Qe2 {[%emt 0:00:09] [#]} Bf5 $146 {[%emt 0:01:21]} ({Predecessor:} 10... Nc6 11. Na3 Bg4 12. Be4 Qe6 13. h3 Bh5 14. b3 cxb3 15. axb3 O-O-O 16. Nc4 Nd5 {½-½ (104) Lodici,L (2404)-Shevchenko,K (2537) Trieste 2017}) 11. Bxf5 {[%emt 0:00:50]} Qxf5 {[%emt 0:00:03]} 12. Na3 {[%emt 0:00:23]} Qc5 {[%emt 0:09:17]} (12... Nc6 $14) 13. Ne5 $16 {[%emt 0:00:52]} N8d7 {[%emt 0:01:32]} 14. Naxc4 {[%emt 0:01:47]} Nxe5 {[%emt 0:01:44]} 15. Nxe5 {[%emt 0:00:07]} f6 {[%emt 0:00:18]} 16. d4 {[%emt 0:00:53]} Qd5 {[%emt 0:00:37]} 17. Nd3 {[%emt 0:01:31]} e5 {[%emt 0:01:13]} 18. Nf4 {[%emt 0:06:29]} (18. dxe5 O-O-O $14) 18... Qd7 {[%emt 0:02:48]} 19. dxe5 {[%emt 0:03:15]} O-O-O {[%emt 0:00:02]} 20. Be3 {[%emt 0:04:25]} fxe5 {[%emt 0:00:32]} 21. Nh5 {[%emt 0:00:03]} (21. Bxb6 $142 axb6 22. Nh5 (22. Qxe5 $2 Bd6 $19)) 21... Qc6 {[%emt 0:06:03]} 22. h3 {[%emt 0:04:54]} (22. Bxb6 $16 Qxb6 23. Ng3 (23. Qxe5 Qxb2 24. Re1 Bd6 $17)) 22... Be7 {[%emt 0:03:46]} (22... Nd5 $14) 23. Kg1 {[%emt 0:01:15]} g6 {[%emt 0:01:42]} (23... Nd5 $142) 24. Ng3 {[%emt 0:00:04]} Nd5 {[%emt 0:00:01]} 25. Kh2 {[%emt 0:00:55]} h5 {[%emt 0:00:27]} 26. Rhd1 {[%emt 0:01:07]} h4 {[%emt 0:01:55]} (26... a6 $16 27. f3 Rhe8) 27. Ne4 $18 {[%emt 0:01:13]} Rhf8 {[%emt 0:02:00]} 28. c4 {[%emt 0:01:01]} (28. Bxa7 $6 Nf4 29. Qe3 Nd5 30. Rxd5 Qxd5 $16) 28... Nf6 {[%emt 0:03:59]} (28... Nxe3 {was necessary.} 29. Qxe3 Qb6 30. Qxb6 axb6) 29. Nxf6 {[%emt 0:00:14]} Qxf6 {[%emt 0:00:39]} 30. a4 {[%emt 0:03:53]} ({Much less strong is} 30. Bxa7 b6) 30... Bd6 {[%emt 0:00:46]} 31. Qg4+ {[%emt 0:00:27]} Kb8 {[%emt 0:00:11]} 32. Kg1 {[%emt 0:00:45]} e4 {[%emt 0:01:05]} 33. Qxe4 {[%emt 0:00:36]} Rfe8 {[%emt 0:00:18]} 34. Qf3 {[%emt 0:01:03]} Qxf3 {[%emt 0:00:32]} 35. gxf3 {[%emt 0:00:03][%cal Od1d6] aiming for Rxd6!} Be5 {[%emt 0:00:10] [#]} 36. Rxd8+ $1 {[%emt 0:00:19]} Rxd8 {[%emt 0:00:00][%mdl 4096] Endgame [#] KRB-KRB} 37. Rb1 {[%emt 0:00:02]} g5 {[%emt 0:00:07]} 38. Kf1 {[%emt 0:00:07]} Bf4 {[%emt 0:00:00]} 39. Ke2 {[%emt 0:00:03]} Rd6 {[%emt 0:00:11]} 40. Rd1 {[%emt 0:00:16] Threatens to win with Bxf4.} Re6 {[%emt 0:00:24]} 41. Rd5 {[%emt 0:00:24]} Kc7 {[%emt 0:00:20]} 42. b4 {[%emt 0:00:24]} b6 {[%emt 0:00:08]} 43. Kd3 {[%emt 0:00:05]} Rf6 {[%emt 0:00:03]} 44. Ke4 {[%emt 0:00:26]} Bxe3 {[%emt 0:00:04]} (44... Rf7 $142 45. Rf5 Re7+ 46. Kd3 Rd7+ 47. Ke2 Re7) 45. fxe3 {[%emt 0:00:03]} Rc6 {[%emt 0:00:07]} 46. c5 {[%emt 0:00:16] Black must now prevent Rd6.} bxc5 {[%emt 0:00:01]} 47. Rxc5 {[%emt 0:00:02] Weighted Error Value: White=0.10 (very precise) /Black=0.41} 1-0

[Event "Slovakia Open 2022"]
[Site "Bratislava"]
[Date "2022.09.30"]
[Round "2.8"]
[White "Chlpek, Daniel"]
[Black "Mikrut, Dariusz"]
[Result "0-1"]
[ECO "E73"]
[WhiteElo "2020"]
[BlackElo "2316"]
[Annotator "TA"]
[PlyCount "90"]
[EventDate "2022.09.30"]
[EventCountry "SVK"]
[SourceTitle "playchess.com"]
[Source "ChessBase"]
[SourceQuality "1"]
[TimeControl "2700+10"]

{[%evp 12,90,50,33,43,33,58,19,19,20,40,15,52,37,30,-15,19,-9,5,-26,0,0,0,-63,-48,-66,-69,-62,-49,-142,-86,-75,-96,-125,-118,-192,-139,-160,-150,-198,-127,-191,-192,-193,-122,-176,-172,-169,-169,-178,-171,-164,-164,-164,-89,-170,-160,-162,0,0,0,-8,-8,-8,-8,-118,-122,-120,-113,-214,-214,-251,-231,-212,-183,-154,-136,-268,-212,-497,-515]} 1. d4 {[%emt 0:00:45]} Nf6 {[%emt 0:00:15]} 2. c4 {[%emt 0:00:03]} g6 {[%emt 0:00:02]} 3. Nc3 {[%emt 0:00:10]} Bg7 {[%emt 0:00:01]} 4. e4 {[%emt 0:00:00]} d6 {[%emt 0:00:02]} 5. Be2 {[%emt 0:00:00]} O-O {[%emt 0:00:03]} 6. Bg5 {[%emt 0:00:05]} Na6 {[%emt 0:00:03]} 7. h4 {[%emt 0:00:56]} h5 {[%emt 0:00:40] E73: King's Indian: Averbakh Variation without 6...c5.} 8. Qd2 {[%emt 0:01:06]} Qe8 {[%emt 0:00:41] [#]} 9. O-O-O $146 {[%emt 0:01:29]} ({Predecessor:} 9. f3 e5 10. d5 Nc5 11. Nb5 Qd7 12. b4 a6 13. bxc5 axb5 14. c6 bxc6 15. dxc6 Qxc6 16. cxb5 {½-½ (23) Friedgood,D (2188)-Bowmer,K (2039) Hull 2018}) 9... c5 {[%emt 0:00:13] Hoping for ...cxd4. The position is equal.} 10. d5 {[%emt 0:00:25]} Nc7 {[%emt 0:00:30]} 11. Bh6 {[%emt 0:00:57]} a6 {[%emt 0:01:13]} 12. Bxg7 {[%emt 0:00:03]} Kxg7 {[%emt 0:00:02]} 13. f3 {[%emt 0:02:39][%cal Og2g4]} b5 {[%emt 0:00:09]} 14. Re1 {[%emt 0:00:18][%cal Og2g4]} (14. g4 $5) 14... Rb8 {[%emt 0:04:51]} 15. Bd3 {[%emt 0:02:59]} (15. g4 $5) 15... e5 {[%emt 0:00:39]} 16. dxe6 $1 {[%emt 0:03:59]} Bxe6 {[%emt 0:01:48]} 17. Nd5 {[%emt 0:00:18]} (17. Nge2 $1 $11) 17... Qd8 $1 $15 {[%emt 0:00:32]} 18. Ne2 {[%emt 0:00:30]} bxc4 {[%emt 0:00:15]} (18... Bxd5 19. cxd5 Re8 20. Kb1 $11) 19. Bxc4 {[%emt 0:00:17][%cal Og2g4]} Bxd5 {[%emt 0:00:07]} 20. Bxd5 {[%emt 0:01:07]} ({White must play} 20. exd5 $15 Nd7 21. b3) 20... Ncxd5 {[%emt 0:00:07]} ({Black should play} 20... Nfxd5 21. exd5 Rb4) 21. exd5 $17 {[%emt 0:00:04][%cal Og2g4]} Rb4 {[%emt 0:00:25] Against g4} 22. Qc3 {[%emt 0:04:18][%cal Og2g4]} Kg8 {[%emt 0:01:41]} 23. Rd1 {[%emt 0:00:17]} (23. a3 $17 {might work better.} Nxd5 24. Qd3) 23... Re8 {[%emt 0:00:37]} (23... Nd7 $19 {...Ne5 is the strong threat.} 24. Qc2 Ne5) 24. a3 {[%emt 0:01:40]} Rb8 {[%emt 0:03:23] Black is more active.} ({Reject} 24... Rxe2 $6 25. axb4 cxb4 26. Qxb4 $11) 25. Nf4 {[%emt 0:02:01]} (25. Rd2 $17 {was the only chance.}) 25... Re5 {[%emt 0:00:21]} (25... Nd7 $1 $19 {[%cal Oc5c4]} 26. Kb1 Ne5) 26. Rhe1 {[%emt 0:01:10]} (26. Rde1 $17) 26... Nd7 $19 {[%emt 0:01:32]} 27. g3 {[%emt 0:00:03]} Qf6 {[%emt 0:01:51]} (27... Rxe1 $19 28. Rxe1 Ne5) 28. Rxe5 {[%emt 0:03:32]} (28. Re4 $17) 28... Nxe5 {[%emt 0:04:26]} 29. Nd3 {[%emt 0:01:24]} Qxf3 {[%emt 0:05:28]} 30. Nxe5 {[%emt 0:00:02]} Qxc3+ {[%emt 0:00:01]} 31. bxc3 {[%emt 0:00:02]} dxe5 {[%emt 0:00:02][%mdl 4096] Endgame KR-KR} 32. Kc2 {[%emt 0:02:04]} e4 {[%emt 0:00:28]} (32... c4 $19 33. d6 Kf8) 33. Kd2 {[%emt 0:00:54]} (33. d6 $17) 33... Kf8 {[%emt 0:03:07]} 34. Ke3 {[%emt 0:00:02]} Rb3 $2 {[%emt 0:02:46]} (34... f5 $19 {White must now prevent ...Ke7.} 35. Kf4 Kf7) 35. Kxe4 $11 {[%emt 0:00:05]} Rxc3 {[%emt 0:00:02]} 36. d6 {[%emt 0:02:22] aiming for d7.} Ke8 {[%emt 0:00:02]} 37. Kd5 {[%emt 0:00:08]} Kd7 {[%emt 0:00:28]} (37... Rxa3 38. Kc6 Re3 39. Kc7 Re7+ 40. dxe7 Kxe7 41. Rc1 $18) 38. Rb1 {[%emt 0:00:24]} (38. Rf1 $11 {was the only way to keep the balance.} f5 39. Rb1 Rd3+ 40. Kxc5) 38... Rd3+ $17 {[%emt 0:00:08]} (38... Rxa3 $2 39. Rb7+ Ke8 40. Kc6 $18) 39. Kxc5 {[%emt 0:00:02]} Rxd6 {[%emt 0:00:12] Strongly threatening ...Rd3.} ({Of course not} 39... Rc3+ $6 40. Kd5 $11) 40. Rb7+ {[%emt 0:01:29]} (40. a4 $17 {is a better defense.}) 40... Ke6 $19 {[%emt 0:00:03]} 41. a4 {[%emt 0:00:49] [#]} Rd3 $1 {[%emt 0:01:14]} 42. Rb6+ {[%emt 0:02:04] [#]} Kf5 $1 {[%emt 0:00:12]} 43. Rxa6 {[%emt 0:00:02]} Rxg3 {[%emt 0:00:02]} 44. Rb6 {[%emt 0:00:25]} (44. Rd6 $17) 44... Ra3 {[%emt 0:00:39]} 45. Rb4 {[%emt 0:00:04]} (45. Kb4 {was the only defense.} Rh3 46. a5) 45... f6 {[%emt 0:00:26] Weighted Error Value: White=0.36/Black=0.18 (very precise)} 0-1

[Event "Slovakia Open 2022"]
[Site "Bratislava"]
[Date "2022.09.30"]
[Round "2.9"]
[White "Machata, Martin"]
[Black "Zetocha, Adrian"]
[Result "0-1"]
[ECO "B21"]
[WhiteElo "2212"]
[BlackElo "2205"]
[Annotator "TA"]
[PlyCount "86"]
[EventDate "2022.09.30"]
[EventCountry "SVK"]
[SourceTitle "playchess.com"]
[Source "ChessBase"]
[SourceQuality "1"]
[TimeControl "2700+10"]

{[%evp 14,86,50,49,70,63,97,0,62,66,117,64,117,119,175,171,190,113,123,115,121,0,116,85,79,39,107,108,104,23,124,59,225,220,221,235,219,213,185,129,403,386,1101,1058,869,0,104,-7,-7,-20,0,-193,-222,-198,0,-370,-181,-426,-53,-65,0,-641,-631,-623,-628,-29982,-29982,-29982,-29956,-29983,-29984,-29984,-29985,-29985,-29986]} 1. e4 {[%emt 0:10:00] ChessBase II} c5 {[%emt 0:01:00]} 2. Nc3 {[%emt 0:00:02]} Nc6 {[%emt 0:00:37]} 3. Bb5 {[%emt 0:00:01]} g6 {[%emt 0:04:44]} 4. Bxc6 {[%emt 0:00:02]} dxc6 {[%emt 0:00:03]} 5. d3 {[%emt 0:00:10]} Bg7 {[%emt 0:01:03]} 6. f4 {[%emt 0:00:01]} Nf6 {[%emt 0:01:20]} 7. Nf3 {[%emt 0:00:01]} O-O {[%emt 0:00:50]} 8. O-O {[%emt 0:00:00]} Nd7 {[%emt 0:04:02][%cal Oc5c4] B21: Sicilian: 2 f4 and Morra Gambit.} 9. Qe1 {[%emt 0:00:00]} e5 {[%emt 0:04:57]} 10. Qg3 {[%emt 0:03:57]} (10. f5 $1 $16) 10... Re8 {[%emt 0:02:10]} (10... c4 $1 $11) 11. f5 $14 {[%emt 0:05:59]} Nf8 {[%emt 0:01:14]} (11... Nf6 $14) 12. Be3 {[%emt 0:10:40]} ({Better is} 12. Rf2 $16) 12... b6 {[%emt 0:00:29] [#]} (12... gxf5 $14 13. exf5 (13. Bxc5 f4 $11) 13... Bxf5) 13. Rf2 $146 {[%emt 0:01:01]} ({Predecessor:} 13. h4 gxf5 14. exf5 Bxf5 15. h5 Kh8 16. Ng5 Be6 17. Nxf7+ Bxf7 18. Rxf7 Ne6 19. h6 Bf6 20. Ne4 Nf4 21. Nxf6 Qxf6 22. Rxf6 {1-0 (22) Riff,V (2110)-Lecoq,J (2095) Aix les Bains 2003 EXT 2004 [ChessBase II]}) 13... f6 {[%emt 0:02:22]} (13... gxf5 $16 14. exf5 (14. Bh6 Ng6 $11) 14... Bxf5) 14. Raf1 $18 {[%emt 0:00:42]} a5 {[%emt 0:08:56]} 15. fxg6 {[%emt 0:01:58]} ({White should try} 15. Nh4 $18) 15... hxg6 $16 {[%emt 0:00:11]} 16. Nh4 {[%emt 0:00:17]} Kh7 {[%emt 0:00:18]} 17. Nf3 {[%emt 0:02:26]} (17. a4 $16) 17... Ra7 {[%emt 0:00:26]} (17... Kg8 $11 {remains equal.}) 18. Qh4+ {[%emt 0:04:03]} Kg8 {[%emt 0:00:02]} 19. Nd1 {[%emt 0:00:37]} Ne6 {[%emt 0:00:47]} (19... Be6 $14) 20. Qg3 $1 {[%emt 0:01:40]} Nf8 {[%emt 0:00:49]} 21. Bc1 {[%emt 0:00:21]} (21. Nh4 $16) 21... Be6 {[%emt 0:00:25]} (21... f5 $1 $11) 22. Ne3 {[%emt 0:00:13]} (22. b3 $16) 22... Bxa2 $2 {[%emt 0:00:39]} (22... f5 $14 23. exf5 (23. Nxe5 Qd6 $11) 23... gxf5 24. Nxe5 Qc7) 23. b3 $18 {[%emt 0:00:48] Hoping for Nh4.} a4 {[%emt 0:00:05]} 24. Nh4 {[%emt 0:00:02]} axb3 {[%emt 0:07:20]} 25. Nxg6 {[%emt 0:00:07][%cal Oe3g4] Black must now prevent Ng4!} bxc2 {[%emt 0:00:32]} 26. Nf5 {[%emt 0:00:50]} (26. Nxc2 Be6 $11) (26. Nxf8 $1 $18 Rxf8 27. Ng4 (27. Nxc2 Bb3 $15)) 26... Nxg6 $4 {[%emt 0:02:29][%mdl 8192]} (26... Be6 $16) 27. Qxg6 {[%emt 0:00:02]} Be6 $2 {[%emt 0:00:29]} (27... Rf8 28. Bh6 (28. Rxc2 Be6 $11) 28... Qe8) 28. Nh6+ $1 {[%emt 0:00:57]} (28. Rxc2 Bxf5 29. Qxf5 Qxd3 $11) 28... Kh8 {[%emt 0:00:11] [#]} 29. Nf5 $2 {[%emt 0:01:12]} (29. Qh5 $1 $18) 29... Rf8 {[%emt 0:00:43] [#]} (29... Bf8 $11) 30. Rf3 {[%emt 0:00:17]} (30. Qh5+ $1 $16 Kg8 31. Nh6+ Bxh6 32. Bxh6) 30... Bxf5 $11 {[%emt 0:00:02]} 31. Rxf5 {[%emt 0:00:13]} Rff7 {[%emt 0:00:20]} 32. Rh5+ $2 {[%emt 0:00:58]} (32. h4 $11) 32... Kg8 $19 {[%emt 0:00:01] Threatens to win with ...Qd4+.} 33. h4 {[%emt 0:00:38]} Qxd3 $2 {[%emt 0:00:27]} ({And not} 33... Kf8 34. Rh7 Qxd3 35. h5 $11) (33... Qd4+ $19 34. Kh2 Qxd3 35. Qh7+ (35. Rf3 $2 Qd1 $19) 35... Kf8) 34. Rhf5 $2 {[%emt 0:00:08][%mdl 8192]} (34. Rh7 $1 $11 {and White has nothing to worry.}) 34... Ra1 {[%emt 0:00:14]} (34... Qxe4 $142 {...Ra1 is the strong threat.} 35. h5 Ra1) 35. R5f3 $2 {[%emt 0:00:16]} (35. R5f2 {is the only way for White.}) 35... Qd4+ $2 {[%emt 0:00:07]} (35... Qd1 $19 36. Be3 f5 37. exf5 e4) 36. Kh2 $15 {[%emt 0:00:04]} Qd1 {[%emt 0:00:09]} (36... Kf8 $15 37. h5 Ke7) 37. Bh6 $2 {[%emt 0:00:19][%mdl 8192]} (37. Rxf6 $11 Rxf6 38. Rxf6 Rxc1 39. Qe8+ Kh7 40. Qg6+ Kh8 41. Qe8+ Kh7 42. Qg6+ Kh8 43. Qe8+ Kh7) 37... Qxf1 $19 {[%emt 0:00:34]} 38. Rxf1 {[%emt 0:00:07]} Rxf1 {[%emt 0:00:01]} 39. Bxg7 {[%emt 0:00:00] [#] Strongly threatening Bh6+.} Rh1+ $3 {[%emt 0:00:13][%mdl 512] Black mates.} 40. Kxh1 {[%emt 0:00:11]} c1=Q+ {[%emt 0:00:02]} 41. Kh2 {[%emt 0:00:03]} Rxg7 {[%emt 0:00:11]} 42. Qe8+ {[%emt 0:00:12]} Kh7 {[%emt 0:00:10]} 43. Qh5+ {[%emt 0:00:01]} Qh6 {[%emt 0:00:00] Weighted Error Value: White=0.90/Black=0.81} 0-1

[Event "Slovakia Open 2022"]
[Site "Bratislava"]
[Date "2022.09.30"]
[Round "2.10"]
[White "Panko, Radoslav"]
[Black "Matejovic, Juraj"]
[Result "1-0"]
[ECO "A45"]
[WhiteElo "1996"]
[BlackElo "2238"]
[Annotator "TA"]
[PlyCount "84"]
[EventDate "2022.09.30"]
[EventCountry "SVK"]
[SourceTitle "playchess.com"]
[Source "ChessBase"]
[SourceQuality "1"]
[TimeControl "2700+10"]

{[%evp 9,84,0,4,14,28,14,14,12,22,20,29,25,27,24,31,0,0,0,0,0,0,-29,-31,-29,-32,-33,-26,-27,-23,-45,-41,-48,-30,-60,-33,-72,-70,-72,-70,-72,-75,-157,-53,-49,-9,-85,-8,-18,-8,-70,-8,-8,0,-504,-477,-29998,-1499,-1375,-1362,-29988,-29980,-29986,-29987,-29986,-29987,-29990,-29984,-29991,-29985,-29985,-29980,-29986,-29987,-29989,-1847,-29992,287]} 1. d4 {[%emt 0:00:04]} Nf6 {[%emt 0:00:06]} 2. Bg5 {[%emt 0:00:03]} g6 {[%emt 0:00:08]} 3. Bxf6 {[%emt 0:00:03]} exf6 {[%emt 0:00:02]} 4. c4 {[%emt 0:00:02]} Bg7 {[%emt 0:00:27]} 5. Nc3 {[%emt 0:00:02]} d6 {[%emt 0:00:30]} 6. e3 {[%emt 0:00:05] A45: Trompowsky Attack.} Nd7 {[%emt 0:02:38]} 7. g3 {[%emt 0:00:07]} f5 {[%emt 0:01:22]} 8. Nge2 {[%emt 0:00:19] The position is equal.} c6 {[%emt 0:00:34]} 9. Bg2 {[%emt 0:00:18]} a5 {[%emt 0:02:40]} 10. O-O {[%emt 0:00:30]} O-O {[%emt 0:01:35]} 11. a3 {[%emt 0:00:16] [#]} Qb6 $146 {[%emt 0:00:19]} ({Predecessor:} 11... Nf6 12. b4 Be6 13. Qd3 Qe7 14. Rfb1 h5 15. h4 Rfc8 16. Ra2 axb4 17. axb4 Rxa2 18. Nxa2 {0-1 (50) Koellner,R (2376)-Rangel,D (2227) Chess.com INT 2020}) 12. b4 {[%emt 0:00:23]} axb4 {[%emt 0:02:07]} 13. axb4 {[%emt 0:00:03]} Rxa1 {[%emt 0:01:14]} 14. Qxa1 {[%emt 0:00:03]} Qxb4 {[%emt 0:01:44]} 15. Qa2 {[%emt 0:05:33][%cal Og2c6]} (15. Rb1 $5 {[%cal Rb1b4]} Qxc4 16. Nf4 Bxd4 17. exd4 $11) 15... Qb6 {[%emt 0:00:46]} 16. Rb1 {[%emt 0:00:38]} Qc7 {[%emt 0:00:12]} 17. Qa7 {[%emt 0:00:18]} Qd8 {[%emt 0:09:29]} 18. Na4 {[%emt 0:00:45]} Re8 {[%emt 0:00:34]} 19. Nb6 {[%emt 0:00:40]} Nxb6 {[%emt 0:00:20]} 20. Rxb6 {[%emt 0:00:52]} Bf8 {[%emt 0:04:32]} 21. Nc3 {[%emt 0:06:26]} Qf6 {[%emt 0:02:36]} 22. Qa3 {[%emt 0:05:33]} d5 {[%emt 0:04:50]} 23. c5 {[%emt 0:00:14]} Qd8 {[%emt 0:01:16] ...Qxb6 is the strong threat.} 24. Qb2 {[%emt 0:01:39]} h5 {[%emt 0:00:18]} 25. h4 {[%emt 0:00:02]} ({White should play} 25. Rb3) 25... Bg7 {[%emt 0:00:33]} (25... f4 $1 $17 {[%cal Rf4g3] And now ...fxg3 would win.} 26. exf4 Qe7) 26. Ne2 $15 {[%emt 0:00:24]} Bh6 {[%emt 0:01:28]} 27. Bf3 {[%emt 0:00:38]} (27. Nf4 $11) 27... Qe7 {[%emt 0:00:28]} (27... g5 $1 $17 {[%cal Rg5h4]} 28. hxg5 (28. Bxh5 gxh4 29. Rxb7 Bxb7 $17) 28... Qxg5) 28. Kg2 {[%emt 0:01:22]} Qc7 {[%emt 0:01:01]} 29. Nc1 {[%emt 0:02:24]} ({Better is} 29. Nf4 $11) 29... Qd7 {[%emt 0:00:42]} (29... f4 $15 30. exf4 Bxf4 $1 31. gxf4 Qxf4) 30. Nd3 $11 {[%emt 0:00:32]} f4 {[%emt 0:01:14]} 31. Nxf4 {[%emt 0:00:05][%mdl 8192] Active counter play!} (31. exf4 $11 Bg7 32. Qc3) 31... Bxf4 $19 {[%emt 0:00:13]} 32. exf4 {[%emt 0:01:42]} (32. Rb3 $19) 32... Re1 {[%emt 0:00:02]} (32... Qh3+ $142 33. Kg1 Re1#) 33. g4 {[%emt 0:01:35]} hxg4 {[%emt 0:00:02]} 34. Be2 {[%emt 0:00:16]} g3 {[%emt 0:01:00]} 35. fxg3 {[%emt 0:00:26]} Qh3+ {[%emt 0:00:21]} 36. Kf2 {[%emt 0:00:35]} Qh1 {[%emt 0:01:30]} 37. Qd2 {[%emt 0:04:16]} Qg1+ {[%emt 0:00:15]} 38. Kf3 {[%emt 0:00:02]} Bf5 {[%emt 0:01:22]} 39. Rxb7 {[%emt 0:01:26]} Be4+ {[%emt 0:00:20]} 40. Kg4 {[%emt 0:00:05]} Qf2 {[%emt 0:00:30]} 41. Kg5 {[%emt 0:01:43]} Kg7 {[%emt 0:00:21]} ({But not} 41... Rxe2 {[#]} 42. Kh6 $1 Kf8 43. Qa5 Bf5 44. Qc7) 42. Qa5 {[%emt 0:01:04]} Qxd4 $4 {[%emt 0:00:29][%mdl 8192] Weighted Error Value: White=0.79/Black=0.25 (precise)} 1-0

[Event "Slovakia Open 2022"]
[Site "Bratislava"]
[Date "2022.09.30"]
[Round "2.11"]
[White "Kukelko, Alexey"]
[Black "Rosol, Alexander"]
[Result "1-0"]
[WhiteElo "2280"]
[BlackElo "2041"]
[Annotator "TA"]
[PlyCount "33"]
[EventDate "2022.09.30"]
[EventCountry "SVK"]
[SourceTitle "playchess.com"]
[Source "ChessBase"]
[SourceQuality "1"]
[TimeControl "2700+10"]

{[%evp 16,17,44,30]} 1. e4 {[%emt 0:00:03]} d6 {[%emt 0:00:08]} 2. d4 {[%emt 0:00:03]} Nf6 {[%emt 0:00:03]} 3. Nc3 {[%emt 0:00:03]} e5 {[%emt 0:00:01]} 4. Nf3 {[%emt 0:01:05]} Nbd7 {[%emt 0:00:03]} 5. Bc4 {[%emt 0:00:44]} Be7 {[%emt 0:00:03]} 6. O-O {[%emt 0:00:04]} c6 {[%emt 0:00:03]} 7. a4 {[%emt 0:00:02]} O-O {[%emt 0:00:03]} 8. Re1 {[%emt 0:00:30]} a5 {[%emt 0:00:05] 8...h6 gains popularity.} 9. h3 {[%emt 0:00:21] [#]} {Predecessor:} Nb6 $146 {C41: Philidor Defence.} 10. Bb3 Nfd7 11. Be3 exd4 12. Nxd4 Nc5 13. Qf3 Nxb3 14. cxb3 Nd7 15. Rad1 Ne5 16. Qe2 f6 17. f4 {1-0 (54) Sadhwani,R (2620)-Morozevich,A (2659) Krasnogorsk 2022} 1-0